bitfinex/quotes_SOLUSD_20260201
["timestamp","ask_amount","ask_price","bid_price","bid_amount"]
[1769960981031,9.3055412,101.65,101.61,9.84152471]
[1769960981534,4.23948501,101.65,101.61,9.84091625]
[1769960981738,4.23948501,101.65,101.62,9.84052137]
[1769960981926,13.54502621,101.65,101.6,13.96868304]
[1769960982227,9.3055412,101.66,101.62,9.84058181]
[1769960982815,13.54502621,101.69,101.63,4.12704775]
[1769960983015,13.54502621,101.67,101.62,13.96762956]
[1769960983325,4.23948501,101.67,101.62,38.56908596]
[1769960983525,4.23948501,101.65,101.6,13.96885557]
[1769960983723,9.3055412,101.63,101.6,9.84224975]
[1769960983943,13.54502621,101.64,101.6,9.84224975]
[1769960984238,13.54502621,101.64,101.59,13.97019046]
[1769960984733,9.3055412,101.63,101.59,13.97019046]
[1769960985844,19.14531717,101.63,101.59,4.12704775]
[1769960986017,9.3055412,101.61,101.57,14.07013792]
[1769960986216,9.3055412,101.61,101.57,4.22551262]
[1769960986621,9.3055412,101.61,101.57,14.07087439]
[1769960986828,4.1131746,101.62,101.57,4.22551262]
[1769960987020,13.4187158,101.62,101.57,4.22551262]
[1769960987622,13.4187158,101.62,101.58,9.8437738]
[1769960987824,13.4187158,101.62,101.56,4.22551262]
[1769960988035,9.3055412,101.61,101.56,4.22551262]
[1769960988341,9.3055412,101.6,101.56,4.22551262]
[1769960989043,34.43881168,101.63,101.54,4.22551262]
[1769960989044,9.83977597,101.63,101.54,4.22551262]
[1769960989244,9.3055412,101.58,101.51,9.3055412]
[1769960989442,9.3055412,101.56,101.52,4.22551262]
[1769960989736,9.3055412,101.54,101.5,9.85176685]
[1769960989935,9.3055412,101.53,101.5,9.85176685]
[1769960990146,9.3055412,101.53,101.49,14.07823225]
[1769960990437,9.3055412,101.52,101.49,14.07823225]
[1769960990646,9.3055412,101.52,101.48,10.05374357]
[1769960990942,13.4187158,101.53,101.49,9.85300001]
[1769960991239,13.4187158,101.53,101.48,10.05376834]
[1769960991442,9.3055412,101.52,101.48,0.2]
[1769960991740,9.3055412,101.5,101.47,0.2]
[1769960991943,23.26998367,101.51,101.47,10.05450278]
[1769960992143,9.3055412,101.5,101.47,10.05450278]
[1769960992347,4.1131746,101.53,101.48,4.22551262]
[1769960992644,19.15420844,101.54,101.48,4.22551262]
[1769960992823,9.3055412,101.53,101.48,4.22551262]
[1769960993425,13.4187158,101.53,101.48,4.22551262]
[1769960993635,4.1131746,101.55,101.48,4.22551262]
[1769960993850,13.4187158,101.56,101.51,14.0767588]
[1769960994230,4.1131746,101.56,101.51,38.70487425]
[1769960994431,13.4187158,101.56,101.51,38.70487425]
[1769960994747,13.4187158,101.56,101.51,9.85124618]
[1769960994945,9.3055412,101.55,101.51,9.85124618]
[1769960995341,9.3055412,101.55,101.51,14.0767588]
[1769960995651,13.4187158,101.56,101.51,14.0767588]
[1769960995824,23.2643745,101.57,101.52,14.07488599]
[1769960996760,4.1131746,101.54,101.49,28.8578284]
[1769960996941,4.1131746,101.54,101.5,9.85184074]
[1769960997148,13.4187158,101.54,101.49,4.22551262]
[1769960997448,13.4187158,101.54,101.5,9.85161846]
[1769960997925,4.1131746,101.54,101.5,9.85161846]
[1769960998348,4.1131746,101.56,101.5,38.70767295]
[1769960998548,4.1131746,101.54,101.5,9.85161846]
[1769960998734,13.4187158,101.54,101.5,9.85161846]
[1769960999053,13.4187158,101.55,101.5,14.07713108]
[1769960999951,13.4187158,101.54,101.5,9.85161846]
[1769961000254,4.1131746,101.54,101.49,38.71082238]
[1769961000453,23.26767519,101.54,101.49,14.07870012]
[1769961000756,4.1131746,101.53,101.49,9.8531875]
[1769961000935,23.26622462,101.55,101.49,14.07870012]
[1769961001139,23.26622462,101.55,101.49,48.01721008]
[1769961001345,4.1131746,101.54,101.49,38.71166888]
[1769961001530,31.61527085,101.58,101.52,4.22551262]
[1769961001531,4.1131746,101.58,101.52,4.22551262]
[1769961001739,13.4187158,101.58,101.52,13.53105382]
[1769961001944,4.1131746,101.57,101.52,13.53105382]
[1769961002146,4.1131746,101.57,101.53,9.84930562]
[1769961002939,4.1131746,101.57,101.53,34.47256967]
[1769961003445,4.1131746,101.59,101.54,4.22551262]
[1769961003650,4.1131746,101.59,101.55,4.22551262]
[1769961003836,4.1131746,101.61,101.56,4.22551262]
[1769961004032,4.1131746,101.61,101.57,34.45899378]
[1769961004237,4.1131746,101.63,101.58,4.22551262]
[1769961004540,23.25642534,101.65,101.59,13.53105382]
[1769961004838,23.25642534,101.65,101.57,34.45899378]
[1769961004839,13.4187158,101.6,101.56,9.84637668]
[1769961005045,13.4187158,101.62,101.56,47.99342104]
[1769961005248,4.1131746,101.61,101.56,38.68787984]
[1769961005944,31.61527085,101.64,101.58,4.22551262]
[1769961005945,4.1131746,101.63,101.58,4.22551262]
[1769961006155,4.1131746,101.61,101.57,9.84529954]
[1769961006473,4.1131746,101.61,101.58,9.84417631]
[1769961006640,13.4187158,101.61,101.57,9.84508401]
[1769961006842,4.1131746,101.59,101.54,4.22551262]
[1769961007077,4.1131746,101.58,101.52,4.22551262]
[1769961007258,4.1131746,101.58,101.53,4.22551262]
[1769961007437,4.48902851,101.62,101.58,9.84437034]
[1769961007637,9.83894977,101.64,101.58,38.60132856]
[1769961007638,19.14432074,101.64,101.58,38.60132856]
[1769961007942,23.63346884,101.64,101.58,47.90686976]
[1769961008462,4.48902851,101.64,101.6,4.1458143]
[1769961008849,23.63266792,101.65,101.59,4.1458143]
[1769961009163,4.48902851,101.65,101.6,4.1458143]
[1769961009461,13.79456971,101.67,101.62,4.1458143]
[1769961009666,13.79456971,101.65,101.6,4.1458143]
[1769961010046,9.3055412,101.64,101.6,4.1458143]
[1769961010246,9.3055412,101.64,101.61,9.84155102]
[1769961010444,9.3055412,101.64,101.58,13.98942275]
[1769961010445,4.48902851,101.62,101.58,13.98942275]
[1769961010654,13.79456971,101.62,101.58,9.84412302]
[1769961010843,13.79456971,101.62,101.57,4.1458143]
[1769961011048,13.79456971,101.62,101.57,13.99100271]
[1769961011245,13.79456971,101.62,101.57,28.75849293]
[1769961011498,4.48902851,101.62,101.59,9.84253817]
[1769961011777,13.79456971,101.62,101.58,9.84405327]
[1769961011976,13.79456971,101.62,101.57,13.99075892]
[1769961012264,13.79456971,101.62,101.58,9.84428132]
[1769961012479,13.79456971,101.6,101.55,4.1458143]
[1769961012845,13.79456971,101.59,101.55,4.1458143]
[1769961013061,4.48902851,101.59,101.55,4.1458143]
[1769961013772,13.79456971,101.59,101.55,9.84691874]
[1769961013940,4.48902851,101.59,101.56,9.84590941]
[1769961014347,4.48902851,101.59,101.55,9.84736582]
[1769961014957,13.79456971,101.59,101.55,9.84736582]
[1769961015279,13.79456971,101.58,101.54,9.84817094]
[1769961015576,13.79456971,101.57,101.53,9.84904706]
[1769961016172,4.48902851,101.56,101.52,9.84963935]
[1769961016373,9.3055412,101.55,101.5,4.1458143]
[1769961016579,9.3055412,101.55,101.51,38.62517593]
[1769961016749,13.79456971,101.55,101.51,38.62517593]
[1769961017077,4.48902851,101.55,101.51,38.62517593]
[1769961017446,4.48902851,101.53,101.49,4.1458143]
[1769961017653,13.79456971,101.53,101.49,9.8526908]
[1769961018266,13.79456971,101.55,101.5,13.99788186]
[1769961018480,13.79456971,101.54,101.5,4.1458143]
[1769961018793,13.79456971,101.53,101.49,9.85270855]
[1769961019287,9.3055412,101.51,101.47,10.05469473]
[1769961019489,9.3055412,101.51,101.47,0.2]
[1769961019792,13.79456971,101.49,101.47,0.2]
[1769961019960,13.79456971,101.49,101.46,0.2]
[1769961020161,9.3055412,101.52,101.46,4.3458143]
[1769961020385,13.79456971,101.53,101.47,4.1458143]
[1769961020596,13.79456971,101.53,101.48,4.1458143]
[1769961021067,9.3055412,101.52,101.48,4.1458143]
[1769961021257,13.79456971,101.52,101.47,14.00073749]
[1769961022282,9.3055412,101.55,101.49,4.1458143]
[1769961022492,9.3055412,101.55,101.5,4.1458143]
[1769961022658,4.48902851,101.56,101.51,4.1458143]
[1769961022863,4.48902851,101.56,101.51,13.4513555]
[1769961023160,13.79456971,101.58,101.52,4.1458143]
[1769961023579,9.3055412,101.59,101.53,4.1458143]
[1769961023785,13.79456971,101.59,101.53,4.1458143]
[1769961024287,14.33269873,101.59,101.54,9.84833563]
[1769961024471,13.8095985,101.57,101.53,9.84890266]
[1769961024878,4.48902851,101.57,101.53,34.47216671]
[1769961025390,23.65308836,101.59,101.53,38.61798101]
[1769961025987,9.32056999,101.58,101.53,38.61798101]
[1769961026187,23.65413468,101.58,101.53,38.61798101]
[1769961026488,4.48902851,101.56,101.53,9.84917561]
[1769961027571,4.48902851,101.56,101.52,9.8502758]
[1769961027765,4.48902851,101.54,101.49,28.77708288]
[1769961027961,4.48902851,101.54,101.5,9.85169264]
[1769961027962,13.8095985,101.54,101.5,9.85169264]
[1769961028185,13.8095985,101.53,101.49,13.99888859]
[1769961028580,13.8095985,101.55,101.49,4.1458143]
[1769961028975,13.8095985,101.55,101.5,9.85183677]
[1769961029176,9.32056999,101.54,101.51,9.8512041]
[1769961029376,13.8095985,101.55,101.51,9.8512041]
[1769961029574,13.8095985,101.53,101.47,28.78216311]
[1769961029778,13.8095985,101.53,101.49,9.85302189]
[1769961031198,4.48902851,101.52,101.49,9.85302189]
[1769961031580,4.48902851,101.55,101.51,9.85124618]
[1769961032275,23.65712441,101.55,101.51,9.85124618]
[1769961033107,23.65712441,101.55,101.5,4.1458143]
[1769961033108,13.8095985,101.54,101.5,4.1458143]
[1769961033281,13.8095985,101.53,101.49,9.85268005]
[1769961033690,9.32056999,101.53,101.48,4.1458143]
[1769961033895,13.8095985,101.52,101.48,13.9995428]
[1769961034397,13.8095985,101.52,101.48,4.1458143]
[1769961034610,9.32056999,101.51,101.47,9.8548069]
[1769961034791,9.32056999,101.5,101.46,14.20137359]
[1769961034998,13.8095985,101.51,101.47,9.85486912]
[1769961035296,4.48902851,101.47,101.42,4.1458143]
[1769961035479,13.8095985,101.47,101.44,9.85789133]
[1769961035678,13.8095985,101.47,101.42,4.1458143]
[1769961035679,19.17672636,101.46,101.42,14.00526837]
[1769961035877,4.48902851,101.45,101.42,9.85945407]
[1769961036077,14.34518488,101.46,101.41,4.3458143]
[1769961036291,4.48902851,101.46,101.42,9.85965025]
[1769961036492,23.66402111,101.48,101.42,14.00546455]
[1769961036790,13.8095985,101.48,101.42,38.65543497]
[1769961037001,13.8095985,101.48,101.43,4.1458143]
[1769961037200,4.48902851,101.48,101.43,4.1458143]
[1769961037783,4.48902851,101.48,101.44,34.50315457]
[1769961037987,23.30882195,101.5,101.45,4.08743187]
[1769961038192,4.13573356,101.5,101.45,4.08743187]
[1769961039804,13.9884224,101.5,101.45,13.94436981]
[1769961039978,13.45630355,101.49,101.44,4.08743187]
[1769961040293,4.13573356,101.49,101.45,38.5871249]
[1769961040487,13.98735101,101.51,101.46,4.08743187]
[1769961041210,4.13573356,101.53,101.48,4.08743187]
[1769961041381,13.45630355,101.53,101.48,4.08743187]
[1769961042182,23.3059592,101.53,101.48,13.94141155]
[1769961042388,4.13573356,101.53,101.49,4.08743187]
[1769961042790,13.45630355,101.53,101.48,9.85397968]
[1769961042998,13.45630355,101.53,101.48,4.08743187]
[1769961043205,19.169291,101.54,101.49,4.08743187]
[1769961043382,4.13573356,101.52,101.47,13.9422648]
[1769961043581,13.45630355,101.52,101.48,9.85407907]
[1769961043904,4.13573356,101.52,101.48,13.94151094]
[1769961044091,4.13573356,101.52,101.43,36.68056999]
[1769961044092,13.45630355,101.52,101.47,13.94206694]
[1769961044298,9.84973252,101.53,101.48,4.08743187]
[1769961044621,13.98444963,101.54,101.49,4.25273341]
[1769961045588,13.98444963,101.54,101.5,9.85221674]
[1769961045789,59.73015043,101.58,101.52,4.25273341]
[1769961045790,13.48908704,101.58,101.52,4.25273341]
[1769961045994,14.01313985,101.58,101.52,9.32056999]
[1769961046191,9.84398056,101.59,101.53,9.32056999]
[1769961046388,23.3330676,101.59,101.54,4.25273341]
[1769961047099,14.01249761,101.59,101.54,4.25273341]
[1769961047303,4.16851705,101.59,101.55,4.25273341]
[1769961047506,23.33113444,101.61,101.56,9.84639621]
[1769961047691,4.16851705,101.61,101.57,4.25273341]
[1769961047890,9.84097058,101.62,101.57,4.25273341]
[1769961048203,4.16851705,101.61,101.57,4.25273341]
[1769961049304,9.84097058,101.62,101.57,4.25273341]
[1769961049686,23.33005762,101.62,101.57,14.0976937]
[1769961050005,14.00948763,101.62,101.58,4.25273341]
[1769961050205,23.33005762,101.62,101.58,4.25273341]
[1769961050409,4.16851705,101.61,101.56,14.09886859]
[1769961050591,13.48908704,101.61,101.56,14.09886859]
[1769961051609,23.33117565,101.61,101.57,9.84531834]
[1769961051906,14.0096291,101.62,101.58,4.25273341]
[1769961052132,9.84007659,101.63,101.58,4.25273341]
[1769961052416,14.10763159,101.64,101.59,4.25273341]
[1769961052589,0.1,101.64,101.6,4.25273341]
[1769961052906,9.93882052,101.64,101.6,4.25273341]
[1769961053111,13.48908704,101.63,101.58,4.25273341]
[1769961053501,13.48908704,101.62,101.57,9.84531834]
[1769961053704,19.1623459,101.61,101.57,14.09805175]
[1769961053884,4.16851705,101.6,101.55,4.25273341]
[1769961054210,13.48908704,101.59,101.54,4.25273341]
[1769961054507,13.48908704,101.59,101.54,38.19304819]
[1769961054508,4.16851705,101.59,101.54,38.19304819]
[1769961054888,4.16851705,101.59,101.54,14.10055337]
[1769961055088,13.48908704,101.6,101.55,14.09943553]
[1769961055288,9.84177591,101.61,101.56,4.25273341]
[1769961055488,14.01029296,101.61,101.56,14.09865333]
[1769961055695,47.93474052,101.61,101.56,4.25273341]
[1769961056008,47.93474052,101.61,101.56,14.09902637]
[1769961056311,13.48908704,101.6,101.56,4.25273341]
[1769961057288,13.48908704,101.59,101.54,14.10069703]
[1769961057489,13.48908704,101.59,101.54,4.25273341]
[1769961057686,23.33354461,101.58,101.52,23.42308324]
[1769961057890,23.33354461,101.58,101.53,14.10200742]
[1769961058510,47.94468853,101.58,101.53,14.10200742]
[1769961058816,9.8433739,101.6,101.56,4.25273341]
[1769961059495,19.16394389,101.6,101.56,4.25273341]
[1769961059709,23.33246094,101.6,101.54,38.72182019]
[1769961060213,23.33246094,101.6,101.55,4.25273341]
[1769961060410,4.16851705,101.59,101.54,9.84824771]
[1769961060608,4.16851705,101.59,101.54,14.10089262]
[1769961061196,14.01051324,101.61,101.56,4.25273341]
[1769961061409,14.01051324,101.61,101.57,4.25273341]
[1769961061591,0.1,101.64,101.6,4.25273341]
[1769961061912,9.93910528,101.64,101.6,14.09496268]
[1769961062117,0.1,101.64,101.61,4.25273341]
[1769961063623,9.83695736,101.66,101.62,4.25273341]
[1769961063806,9.83695736,101.66,101.62,14.09284471]
[1769961064012,9.83695736,101.66,101.62,4.25273341]
[1769961064219,38.07900482,101.67,101.62,23.41361824]
[1769961064220,14.00460635,101.67,101.62,23.41361824]
[1769961064531,4.16851705,101.67,101.62,14.09304825]
[1769961064827,0.1,101.69,101.66,4.25273341]
[1769961065515,0.1,101.69,101.66,13.5733034]
[1769961065706,13.9997397,101.72,101.67,4.25273341]
[1769961066017,0.1,101.74,101.7,4.25273341]
[1769961066316,0.1,101.74,101.71,4.25273341]
[1769961066905,13.48908704,101.73,101.68,4.25273341]
[1769961067109,4.16851705,101.71,101.66,9.83637692]
[1769961067311,13.48908704,101.7,101.65,4.25273341]
[1769961067816,23.55997128,101.68,101.63,14.18118314]
[1769961068001,4.403979,101.7,101.65,4.34187145]
[1769961068199,23.55768659,101.7,101.65,4.34187145]
[1769961068597,48.13979081,101.7,101.65,4.34187145]
[1769961068794,4.403979,101.7,101.65,4.34187145]
[1769961068998,9.32056999,101.73,101.68,4.34187145]
[1769961069218,23.55449099,101.73,101.68,4.34187145]
[1769961069518,4.403979,101.71,101.66,4.34187145]
[1769961069706,13.72454899,101.71,101.66,4.34187145]
[1769961069906,9.83380863,101.69,101.66,4.34187145]
[1769961070319,14.2372679,101.7,101.66,14.17854528]
[1769961070514,23.55783789,101.7,101.66,4.34187145]
[1769961070697,14.2372679,101.7,101.66,4.34187145]
[1769961071819,50.87579155,101.72,101.66,23.49909587]
[1769961072023,13.72454899,101.71,101.66,14.17852588]
[1769961072210,13.72454899,101.71,101.66,4.34187145]
[1769961072408,9.83124256,101.72,101.68,4.34187145]
[1769961072609,0.1,101.74,101.69,13.66244144]
[1769961073200,0.1,101.74,101.7,4.34187145]
[1769961073426,9.92915887,101.74,101.7,4.34187145]
[1769961073827,13.72454899,101.73,101.68,4.34187145]
[1769961074121,0.1,101.74,101.69,4.34187145]
[1769961074515,23.65426845,101.74,101.69,4.34187145]
[1769961074715,4.403979,101.73,101.69,4.34187145]
[1769961075629,4.403979,101.73,101.68,19.1552779]
[1769961075834,4.403979,101.68,101.64,4.34187145]
[1769961076009,4.403979,101.68,101.64,14.18031337]
[1769961076418,14.23727105,101.7,101.66,4.34187145]
[1769961077020,48.13994526,101.7,101.66,4.34187145]
[1769961077534,9.83329205,101.7,101.67,4.34187145]
[1769961077949,9.82656152,101.77,101.72,4.34187145]
[1769961078148,14.23054052,101.77,101.72,9.32056999]
[1769961078438,14.45567569,101.78,101.73,4.34187145]
[1769961078439,9.32056999,101.78,101.73,4.34187145]
[1769961078614,14.22855203,101.79,101.74,9.32056999]
[1769961078814,38.78892141,101.79,101.74,9.32056999]
[1769961079454,38.78892141,101.79,101.71,34.41156227]
[1769961079455,4.403979,101.76,101.71,19.15244492]
[1769961079614,4.403979,101.76,101.71,23.49431637]
[1769961079816,4.403979,101.76,101.72,4.34187145]
[1769961080216,4.403979,101.75,101.7,14.17422778]
[1769961080411,14.23125813,101.76,101.71,13.66244144]
[1769961080641,14.23125813,101.76,101.71,23.4938233]
[1769961081223,14.23125813,101.76,101.72,14.17271195]
[1769961083133,4.27527085,101.8,101.73,4.34187145]
[1769961083454,4.403979,101.81,101.76,13.66244144]
[1769961083625,4.403979,101.81,101.72,34.40811143]
[1769961083626,4.403979,101.8,101.72,34.40811143]
[1769961083934,34.37533381,101.82,101.74,4.34187145]
[1769961083935,13.72454899,101.79,101.74,4.34187145]
[1769961084141,4.403979,101.79,101.74,4.34187145]
[1769961084337,4.403979,101.78,101.73,4.34187145]
[1769961084650,4.403979,101.77,101.72,34.40811143]
[1769961084834,4.403979,101.77,101.72,48.07055287]
[1769961085337,4.403979,101.76,101.72,9.8308405]
[1769961085539,4.403979,101.76,101.71,14.17332967]
[1769961085747,4.403979,101.76,101.71,14.17345814]
[1769961086039,13.72454899,101.76,101.71,14.17345814]
[1769961086241,4.403979,101.74,101.7,9.83239926]
[1769961086415,4.403979,101.76,101.7,4.34187145]
[1769961086620,13.69829453,101.74,101.69,9.83338115]
[1769961086917,65.96699844,101.77,101.67,9.83520109]
[1769961086918,13.69829453,101.72,101.67,9.83520109]
[1769961087240,4.403979,101.7,101.64,38.23213082]
[1769961087544,13.69829453,101.7,101.65,4.34187145]
[1769961087719,13.69829453,101.7,101.65,14.17908491]
[1769961087918,4.403979,101.7,101.66,14.17847191]
[1769961088138,4.403979,101.71,101.66,14.17847191]
[1769961088344,13.69829453,101.71,101.66,14.17847191]
[1769961088913,4.403979,101.7,101.66,14.17847191]
[1769961089118,13.69829453,101.7,101.66,14.17803573]
[1769961089318,14.23716442,101.7,101.66,14.17803573]
[1769961089731,4.403979,101.68,101.64,4.34187145]
[1769961089932,4.403979,101.69,101.63,4.34187145]
[1769961090133,4.403979,101.69,101.6,4.34187145]
[1769961090345,4.403979,101.66,101.62,9.84041413]
[1769961090540,4.403979,101.66,101.62,4.34187145]
[1769961090727,13.69829453,101.66,101.61,14.18290964]
[1769961091042,13.69829453,101.65,101.61,4.34187145]
[1769961091346,13.69829453,101.64,101.59,4.34187145]
[1769961091528,13.69829453,101.61,101.57,4.34187145]
[1769961091720,13.69829453,101.61,101.56,4.34187145]
[1769961091927,9.29431553,101.62,101.58,14.18570717]
[1769961092128,13.69829453,101.62,101.58,14.18570717]
[1769961092943,9.29431553,101.6,101.56,4.34187145]
[1769961093235,13.69829453,101.61,101.56,4.34187145]
[1769961093425,23.54026439,101.61,101.56,14.18787178]
[1769961094054,13.69829453,101.6,101.56,14.18787178]
[1769961094522,19.13628539,101.61,101.56,14.18787178]
[1769961094722,19.13628539,101.61,101.57,4.34187145]
[1769961094942,23.54026439,101.61,101.57,4.34187145]
[1769961095448,4.403979,101.61,101.58,9.84445757]
[1769961095641,13.69829453,101.61,101.57,14.18704022]
[1769961095840,13.69829453,101.61,101.55,4.34187145]
[1769961095841,13.69829453,101.6,101.55,4.34187145]
[1769961096041,13.69829453,101.6,101.56,9.8458367]
[1769961097164,9.29431553,101.59,101.55,14.18913293]
[1769961097352,13.69829453,101.58,101.54,0.2]
[1769961097527,23.54358834,101.58,101.54,0.2]
[1769961098041,4.13584777,101.56,101.54,0.2]
[1769961098238,13.4301633,101.55,101.51,9.85063243]
[1769961098633,9.29431553,101.54,101.5,13.93301633]
[1769961098947,4.13584777,101.55,101.5,4.08096896]
[1769961099453,4.13584777,101.59,101.53,4.08096896]
[1769961099748,23.27429313,101.59,101.54,9.84815014]
[1769961099950,4.13584777,101.58,101.54,9.84815014]
[1769961100447,23.27303152,101.6,101.54,38.54995817]
[1769961100656,13.4301633,101.61,101.56,4.08096896]
[1769961101227,4.13584777,101.6,101.56,4.08096896]
[1769961101432,13.4301633,101.59,101.54,38.54995817]
[1769961101949,4.13584777,101.59,101.55,13.37528449]
[1769961102165,4.13584777,101.59,101.55,4.08096896]
[1769961102334,19.13693434,101.6,101.55,4.08096896]
[1769961102532,13.4301633,101.61,101.56,4.08096896]
[1769961102759,23.2710045,101.62,101.57,4.08096896]
[1769961103260,27.32,101.64,101.54,34.46898921]
[1769961103261,4.13584777,101.66,101.59,4.08096896]
[1769961103463,13.4301633,101.68,101.63,4.08096896]
[1769961103755,13.4301633,101.68,101.62,13.37528449]
[1769961103953,23.26583682,101.68,101.63,9.83961428]
[1769961104329,13.4301633,101.66,101.6,23.21722583]
[1769961104531,13.4301633,101.66,101.6,4.08096896]
[1769961104936,4.10099197,101.64,101.6,4.08096896]
[1769961105230,9.29431553,101.67,101.62,14.13538872]
[1769961105432,13.3953075,101.67,101.62,14.13538872]
[1769961106160,13.3953075,101.64,101.59,9.8429622]
[1769961106384,13.3953075,101.64,101.54,76.58167815]
[1769961106385,4.10099197,101.62,101.57,4.29491846]
[1769961106648,13.3953075,101.62,101.57,4.29491846]
[1769961106963,13.3953075,101.61,101.56,9.84616333]
[1769961107135,13.3953075,101.6,101.55,14.1418391]
[1769961107461,13.3953075,101.6,101.56,9.8463288]
[1769961108034,23.23802363,101.6,101.56,9.8463288]
[1769961108656,13.3953075,101.59,101.55,4.29491846]
[1769961108952,13.3953075,101.59,101.54,9.84779354]
[1769961109357,9.29431553,101.58,101.54,9.84779354]
[1769961109760,9.84271613,101.6,101.56,4.29491846]
[1769961110058,125.93713391,101.61,101.56,14.14119671]
[1769961110240,102.7,101.61,101.58,4.29491846]
[1769961110436,108.07964822,101.71,101.6,13.58923399]
[1769961110437,4.10099197,101.65,101.6,13.58923399]
[1769961110644,18.53875097,101.67,101.62,4.29491846]
[1769961110859,4.10099197,101.66,101.62,4.29491846]
[1769961111067,9.29431553,101.66,101.61,4.29491846]
[1769961111363,23.23154126,101.67,101.61,13.58923399]
[1769961111567,4.10099197,101.66,101.61,13.58923399]
[1769961111859,4.10099197,101.66,101.62,9.29431553]
[1769961112176,9.83713685,101.66,101.61,9.84064149]
[1769961112459,4.10099197,101.65,101.61,9.84104338]
[1769961112839,41.2770785,101.67,101.61,4.29491846]
[1769961113161,4.10099197,101.69,101.64,4.29491846]
[1769961113345,4.10099197,101.69,101.65,9.29431553]
[1769961113549,4.10099197,101.69,101.65,4.29491846]
[1769961113962,23.22911737,101.69,101.63,13.58923399]
[1769961114151,23.22911737,101.69,101.64,9.8386462]
[1769961114553,4.10099197,101.67,101.63,14.13424683]
[1769961114749,4.10099197,101.66,101.61,13.58923399]
[1769961115067,4.10099197,101.66,101.62,9.84051438]
[1769961115947,4.10099197,101.66,101.61,14.13606724]
[1769961116148,13.9380426,101.66,101.61,14.13606724]
[1769961116356,4.10099197,101.66,101.62,4.29491846]
[1769961116552,13.93788148,101.66,101.62,4.29491846]
[1769961116960,38.52965798,101.66,101.61,9.29431553]
[1769961117155,13.93788148,101.66,101.61,13.58923399]
[1769961117464,13.93788148,101.66,101.61,14.13618588]
[1769961117661,13.93788148,101.66,101.61,48.03437898]
[1769961117867,9.83608572,101.67,101.62,13.58923399]
[1769961118065,23.23139322,101.67,101.62,4.29491846]
[1769961118470,47.82075094,101.67,101.62,14.13543035]
[1769961118666,13.93707769,101.67,101.62,14.13543035]
[1769961118880,4.10099197,101.67,101.62,48.03120228]
[1769961119865,13.93510986,101.69,101.64,13.58923399]
[1769961120369,13.3953075,101.71,101.65,23.42691229]
[1769961120562,4.10099197,101.69,101.64,19.13262201]
[1769961120872,13.93304333,101.71,101.66,13.58923399]
[1769961121073,9.39431553,101.72,101.68,4.29491846]
[1769961121074,0.1,101.72,101.68,4.29491846]
[1769961121279,14.0320627,101.72,101.68,4.29491846]
[1769961121570,4.10099197,101.7,101.65,13.58923399]
[1769961121782,4.10099197,101.7,101.64,23.42754047]
[1769961121951,4.10099197,101.67,101.63,4.29491846]
[1769961122150,13.3953075,101.67,101.63,4.29491846]
[1769961122357,13.93758433,101.67,101.63,4.29491846]
[1769961122656,13.3953075,101.65,101.6,14.13700004]
[1769961123063,13.3953075,101.65,101.6,4.29491846]
[1769961123457,4.10099197,101.63,101.58,4.29491846]
[1769961123672,9.29431553,101.63,101.58,4.29491846]
[1769961123874,4.10099197,101.63,101.58,4.29491846]
[1769961124056,13.3953075,101.63,101.58,4.29491846]
[1769961124379,4.10099197,101.65,101.6,4.29491846]
[1769961124885,13.93908175,101.65,101.6,13.58923399]
[1769961125182,9.83705718,101.66,101.61,4.29491846]
[1769961125476,23.23128869,101.67,101.62,4.29491846]
[1769961126049,13.93697316,101.67,101.62,4.29491846]
[1769961126250,4.10099197,101.65,101.6,13.58923399]
[1769961126453,4.10099197,101.65,101.6,14.13693576]
[1769961126657,4.10099197,101.63,101.58,13.58923399]
[1769961126871,4.10099197,101.63,101.58,23.43315994]
[1769961127076,9.29431553,101.64,101.59,14.1382867]
[1769961127386,13.79342072,101.66,101.61,14.27958285]
[1769961127557,4.49910519,101.66,101.62,9.84057157]
[1769961128259,4.27527085,101.68,101.64,14.27680236]
[1769961128260,9.83523638,101.68,101.64,14.27680236]
[1769961128883,14.33334763,101.69,101.64,14.27680236]
[1769961129083,14.33334763,101.69,101.64,23.57111789]
[1769961129289,4.49910519,101.68,101.64,4.43815616]
[1769961129478,4.49910519,101.67,101.63,9.83939087]
[1769961129682,23.62766316,101.69,101.64,4.43815616]
[1769961129865,4.49910519,101.68,101.64,4.43815616]
[1769961130065,13.79342072,101.68,101.63,14.27776818]
[1769961130382,14.33411358,101.68,101.63,23.57208371]
[1769961130763,4.49910519,101.67,101.63,4.43815616]
[1769961130963,13.79342072,101.67,101.62,14.27831852]
[1769961131172,34.4219478,101.68,101.61,4.43815616]
[1769961131173,13.79342072,101.66,101.61,4.43815616]
[1769961131486,4.49910519,101.67,101.62,13.73247169]
[1769961131786,9.83500839,101.68,101.64,4.43815616]
[1769961132088,14.3330293,101.69,101.64,4.43815616]
[1769961132289,23.62734483,101.69,101.64,4.43815616]
[1769961132466,13.79342072,101.69,101.64,14.27637111]
[1769961132970,14.33367142,101.69,101.64,14.27637111]
[1769961133171,31.59527085,101.71,101.66,4.43815616]
[1769961133369,0.1,101.72,101.68,13.73247169]